fUSD/lending_fUSD_20260205
["ID","MTS","AMOUNT","RATE_DAILY","PERIOD"]
[404581738,1770311441930,-971.00789309,0.00016438,2]
[404581741,1770311441943,-971.00789309,0.00016438,2]
[404581743,1770311441953,-971.00789309,0.00016438,2]
[404581745,1770311441963,-971.00789309,0.00016438,2]
[404581747,1770311441975,-971.00789309,0.00016438,2]
[404581749,1770311441988,-971.00789309,0.00016438,2]
[404581751,1770311442000,-971.00789309,0.00016438,2]
[404581753,1770311442011,-971.00789309,0.00016438,2]
[404581755,1770311442022,-971.00789309,0.00016438,2]
[404581757,1770311442032,-971.00789309,0.00016438,2]
[404581759,1770311442041,-971.00789309,0.00016438,2]
[404581761,1770311442050,-971.00789309,0.00016438,2]
[404581763,1770311442059,-971.00789309,0.00016438,2]
[404581765,1770311442068,-971.00789309,0.00016438,2]
[404581767,1770311442077,-971.00789309,0.00016438,2]
[404581769,1770311442087,-971.00789309,0.00016438,2]
[404581771,1770311442095,-971.00789309,0.00016438,2]
[404581773,1770311442104,-971.00789309,0.00016438,2]
[404581775,1770311442113,-971.00789309,0.00016438,2]
[404581777,1770311442123,-971.00789309,0.00016438,2]
[404581779,1770311442132,-8729.36095886,0.00016438,2]
[404581781,1770311442141,-8729.36095886,0.00016438,2]
[404581783,1770311442153,-8729.36095886,0.00016438,2]
[404581785,1770311442163,-8729.36095886,0.00016438,2]
[404581787,1770311442172,-8729.36095886,0.00016438,2]
[404581789,1770311442182,-8729.36095886,0.00016438,2]
[404581791,1770311442192,-8729.36095886,0.00016438,2]
[404581793,1770311442202,-8729.36095886,0.00016438,2]
[404581795,1770311442211,-8729.36095886,0.00016438,2]
[404581797,1770311442221,-8729.36095886,0.00016438,2]
[404581799,1770311442230,-8729.36095886,0.00016438,2]
[404581801,1770311442239,-8729.36095886,0.00016438,2]
[404581803,1770311442249,-8729.36095886,0.00016438,2]
[404581805,1770311442258,-8729.36095886,0.00016438,2]
[404581807,1770311442267,-8729.36095886,0.00016438,2]
[404581809,1770311442277,-8729.36095886,0.00016438,2]
[404581812,1770311442287,-8729.36095886,0.00016438,2]
[404581814,1770311442298,-8729.36095886,0.00016438,2]
[404581816,1770311442307,-8729.36095886,0.00016438,2]
[404581818,1770311442316,-8729.36095886,0.00016438,2]
[404581820,1770311442325,-4053.83317571,0.00016478,2]
[404581822,1770311442335,-3247.24070002,0.00016478,2]
[404581824,1770311442344,-155.0,0.0001653,2]
[404581826,1770311442352,-178.95551655,0.0001658,2]
[404581828,1770311442361,-317.87837385,0.0001664,2]
[404581830,1770311442370,-152.0,0.00016735,5]
[404581832,1770311442379,-578.20924308,0.00016758,2]
[404581834,1770311442388,-200.0,0.00016758,2]
[404581836,1770311442397,-2000.0,0.00016758,2]
[404581838,1770311442410,-721.12765535,0.00016758,2]
[404581840,1770311442419,-2000.0,0.00016758,2]
[404581842,1770311442429,-174.61919141,0.00016758,2]
[404581844,1770311442438,-2000.0,0.00016758,2]
[404581846,1770311442447,-2000.0,0.00016758,2]
[404581848,1770311442456,-2000.0,0.00016758,2]
[404581850,1770311442465,-2000.0,0.00016758,2]
[404581852,1770311442474,-2000.0,0.00016758,2]
[404581854,1770311442483,-2000.0,0.00016758,2]
[404581856,1770311442491,-2000.0,0.00016758,2]
[404581858,1770311442502,-322.6107,0.00016758,2]
[404581860,1770311442511,-500.0,0.00016758,2]
[404581862,1770311442520,-500.0,0.00016758,2]
[404581864,1770311442529,-209.40437685,0.00016758,2]
[404581866,1770311442538,-500.0,0.00016758,2]
[404581868,1770311442547,-500.0,0.00016758,2]
[404581870,1770311442555,-500.0,0.00016758,2]
[404581872,1770311442564,-500.0,0.00016758,2]
[404581889,1770311442716,-2000.0,0.00016758,2]
[404581891,1770311442726,-176.28122483,0.00016758,2]
[404581893,1770311442735,-209.40437684,0.00016758,2]
[404581895,1770311442744,-330.06279005,0.00016758,2]
[404581897,1770311442753,-217.15233878,0.00016813,2]
[404581899,1770311442770,-4053.83317571,0.00016833,2]
[404581901,1770311442779,-3247.24070002,0.00016833,2]
[404581903,1770311442793,-12071.0,0.00016833,2]
[404581904,1770311442813,-317.87837385,0.0001685,2]
[404581905,1770311442832,-225.18697532,0.00016868,2]
[404581906,1770311442843,-233.51889341,0.00016923,2]
[404581907,1770311442852,-166.67,0.00016932,2]
[404581908,1770311442861,-242.15909246,0.00016978,2]
[404581909,1770311442870,-150.0,0.00016999,2]
[404581910,1770311442879,-251.11897888,0.00017033,2]
[404581912,1770311442889,-433.0,0.00017048,2]
[404581914,1770311442901,-317.87837385,0.0001706,2]
[404581916,1770311442912,-260.4103811,0.00017088,2]
[404581918,1770311442921,-152.01739561,0.00017101,2]
[404581920,1770311442933,-270.0455652,0.00017143,2]
[404581922,1770311442943,-4053.83317571,0.00017189,2]
[404581924,1770311442953,-3247.24070002,0.00017189,2]
[404581926,1770311442964,-280.03725112,0.00017198,2]
[404581928,1770311442976,-178.95551655,0.0001724,2]
[404581930,1770311442987,-290.39862941,0.00017253,2]
[404581932,1770311442998,-317.87837385,0.0001727,2]
[404581934,1770311443008,-181.08010149,0.00017306,2]
[404581936,1770311443019,-2000.0,0.00017306,2]
[404581938,1770311443029,-301.1433787,0.00017308,2]
[404581941,1770311443038,-187.1931484,0.00017332,2]
[404581943,1770311443048,-1411.0,0.00017381,2]
[404581946,1770311443057,-1271.0,0.00017381,2]
[404581948,1770311443068,-1205.0,0.00017428,2]
[404581950,1770311443077,-917.0,0.00017428,2]
[404581952,1770311443088,-1448.99,0.00017428,2]
[404581955,1770311443097,-2466.995,0.00017428,2]
[404581957,1770311443107,-3254.0,0.00017428,2]
[404581959,1770311443118,-447.871,0.00017428,2]
[404581961,1770311443128,-317.87837385,0.0001748,2]
[404581963,1770311443137,-156.0,0.00017524,3]
[404581965,1770311443146,-500.0,0.0001753,2]
[404581967,1770311443158,-4053.83317571,0.00017544,2]
[404581969,1770311443167,-3247.24070002,0.00017544,2]
[404581971,1770311443176,-152.0,0.00017569,3]
[404581973,1770311443186,-1234.0,0.00017585,2]
[404581975,1770311443197,-1800.0,0.000176,6]
[404581977,1770311443205,-587.0,0.00017615,2]
[404581979,1770311443215,-317.87837385,0.0001769,2]
[404581981,1770311443225,-150.0,0.00017698,2]
[404581983,1770311443234,-500.0,0.00017698,2]
[404581985,1770311443243,-150.0,0.00017698,2]
[404581987,1770311443253,-150.0,0.00017698,2]
[404581989,1770311443263,-500.0,0.00017698,2]
[404581991,1770311443273,-150.0,0.00017698,2]
[404581993,1770311443282,-150.0,0.00017698,2]
[404581995,1770311443291,-500.0,0.00017698,2]
[404581997,1770311443299,-192.17460847,0.00017698,2]
[404581999,1770311443309,-200.0,0.00017698,2]
[404582001,1770311443318,-500.0,0.00017698,2]
[404582003,1770311443327,-150.0,0.00017698,2]
[404582005,1770311443336,-500.0,0.00017698,2]
[404582007,1770311443345,-500.0,0.00017698,2]
[404582009,1770311443354,-150.0,0.00017698,2]
[404582011,1770311443362,-194.03688759,0.00017698,2]
[404582013,1770311443371,-150.0,0.00017698,2]
[404582015,1770311443380,-188.91311241,0.00017698,2]
[404582017,1770311443388,-500.0,0.00017698,2]
[404582019,1770311443397,-500.0,0.00017698,2]
[404582021,1770311443408,-150.0,0.00017698,2]
[404582023,1770311443416,-150.21207895,0.00017698,2]
[404582025,1770311443425,-150.42668535,0.00017698,2]
[404582027,1770311443434,-150.0,0.00017698,2]
[404582029,1770311443442,-150.0,0.00017698,2]
[404582031,1770311443451,-150.0,0.00017698,2]
[404582033,1770311443459,-150.0,0.00017698,2]
[404582035,1770311443468,-292.33944889,0.00017698,2]
[404582037,1770311443476,-151.98337162,0.00017698,2]
[404582039,1770311443485,-500.0,0.00017698,2]
[404582041,1770311443494,-150.0,0.00017698,2]
[404582043,1770311443503,-150.0,0.00017698,2]
[404582045,1770311443513,-1800.0,0.000177,6]
[404582047,1770311443522,-5196.8083692,0.00017713,2]
[404582049,1770311443531,-199.0,0.00017727,2]
[404582051,1770311443540,-200.0,0.00017748,2]
[404582053,1770311443549,-150.0,0.00017748,2]
[404582055,1770311443558,-150.0,0.00017748,2]
[404582057,1770311443566,-150.0,0.00017748,2]
[404582059,1770311443575,-150.0,0.00017748,2]
[404582061,1770311443584,-150.0,0.00017748,2]
[404582063,1770311443592,-150.0,0.00017748,2]
[404582065,1770311443601,-150.0,0.00017748,2]
[404582067,1770311443610,-150.0,0.00017748,2]
[404582069,1770311443619,-1335.0,0.00017748,2]
[404582071,1770311443627,-3482.0,0.00017748,2]
[404582073,1770311443636,-616.0,0.00017748,2]
[404582075,1770311443645,-150.0,0.00017753,2]
[404582077,1770311443657,-150.0,0.00017753,2]
[404582079,1770311443666,-150.0,0.00017753,2]
[404582081,1770311443675,-501.95201777,0.00017753,2]
[404582083,1770311443684,-200.2113618,0.00017753,2]
[404582085,1770311443693,-150.0,0.00017753,2]
[404582087,1770311443701,-500.0,0.00017753,2]
[404582089,1770311443710,-502.74294871,0.00017753,2]
[404582092,1770311443720,-200.0,0.00017753,2]
[404582094,1770311443729,-500.0,0.00017753,2]
[404582096,1770311443737,-150.0,0.00017753,2]
[404582098,1770311443746,-500.0,0.00017753,2]
[404582099,1770311443755,-500.0,0.00017753,2]
[404582101,1770311443764,-500.0,0.00017753,2]
[404582104,1770311443774,-500.0,0.00017753,2]
[404582106,1770311443783,-150.0,0.00017753,2]
[404582108,1770311443792,-150.0,0.00017753,2]
[404582110,1770311443800,-150.0,0.00017753,2]
[404582112,1770311443809,-236.57017997,0.00017753,2]
[404582113,1770311443819,-150.0,0.00017753,2]
[404582115,1770311443828,-613.72923299,0.00017753,2]
[404582117,1770311443836,-208.08041389,0.00017753,2]
[404582119,1770311443846,-150.21709555,0.00017753,2]
[404582121,1770311443854,-1234.0,0.00017757,2]
[404582123,1770311443863,-199.0,0.00017762,2]
[404582125,1770311443872,-2351.0,0.00017783,2]
[404582127,1770311443881,-1800.0,0.000178,6]
[404582129,1770311443890,-200.33165564,0.00017808,2]
[404582130,1770311443901,-150.0,0.00017808,2]
[404582132,1770311443910,-150.0,0.00017808,2]
[404582134,1770311443922,-150.0,0.00017808,2]
[404582136,1770311443934,-620.0,0.00017808,2]
[404582138,1770311443943,-200.0,0.00017808,2]
[404582139,1770311443952,-582.0,0.00017808,2]
[404582141,1770311443961,-150.0,0.00017808,2]
[404582143,1770311443971,-481.18508703,0.00017808,2]
[404582144,1770311443980,-582.92340475,0.00017808,2]
[404582146,1770311443989,-500.0,0.00017808,2]
[404582148,1770311443998,-500.0,0.00017808,2]
[404582150,1770311444007,-200.0,0.00017808,2]
[404582151,1770311444017,-150.0,0.00017808,2]
[404582153,1770311444026,-150.0,0.00017808,2]
[404582155,1770311444035,-240.06014921,0.00017808,2]
[404582156,1770311444044,-500.0,0.00017808,2]
[404582158,1770311444053,-1000.0,0.00017808,2]
[404582160,1770311444062,-213.26,0.00017844,2]
[404582162,1770311444071,-2741.43624634,0.00017847,2]
[404582163,1770311444079,-187.78006525,0.00017854,2]
[404582165,1770311444089,-2000.0,0.00017854,2]
[404582167,1770311444097,-200.0,0.00017856,2]
[404582168,1770311444106,-199.0,0.00017857,2]
[404582170,1770311444115,-150.0,0.00017862,2]
[404582172,1770311444124,-150.0,0.00017862,2]
[404582174,1770311444134,-150.0,0.00017862,2]
[404582176,1770311444143,-200.0,0.00017862,2]
[404582178,1770311444154,-150.0,0.00017862,2]
[404582179,1770311444163,-500.0,0.00017862,2]
[404582181,1770311444171,-500.0,0.00017862,2]
[404582183,1770311444180,-150.0,0.00017862,2]
[404582185,1770311444189,-150.0,0.00017862,2]
[404582186,1770311444198,-500.0,0.00017863,2]
[404582188,1770311444207,-199.0,0.00017899,2]
[404582190,1770311444217,-203.493,0.000179,2]
[404582191,1770311444226,-317.87837385,0.000179,2]
[404582193,1770311444235,-11786.27958032,0.000179,3]
[404582195,1770311444243,-160.0,0.000179,3]
[404582197,1770311444252,-4053.83317571,0.000179,2]
[404582199,1770311444261,-3247.24070002,0.000179,2]
[404582200,1770311444270,-1800.0,0.000179,6]
[404582202,1770311444279,-178.95551655,0.000179,2]
[404582204,1770311444288,-230.73235111,0.000179,2]
[404582206,1770311444297,-211.1146881,0.00017917,2]
[404582207,1770311444306,-150.0,0.00017917,2]
[404582209,1770311444315,-150.0,0.00017917,2]
[404582211,1770311444325,-200.0,0.00017917,2]
[404582213,1770311444334,-150.0,0.00017917,2]
[404582215,1770311444343,-500.0,0.00017917,2]
[404582216,1770311444351,-500.0,0.00017917,2]
[404582218,1770311444360,-150.0,0.00017917,2]
[404582220,1770311444369,-150.0,0.00017917,2]
[404582222,1770311444378,-500.0,0.00017918,2]
[404582224,1770311444388,-1234.0,0.00017925,2]
[404582226,1770311444397,-216.0,0.00017972,2]
[404582228,1770311444408,-250.0,0.00017972,2]
[404582229,1770311444417,-200.0,0.00017972,2]
[404582231,1770311444427,-250.0,0.00017972,2]
[404582233,1770311444436,-500.0,0.00017972,2]
[404582235,1770311444445,-362.0,0.00017972,2]
[404582237,1770311444454,-250.0,0.00017972,2]
[404582239,1770311444464,-250.0,0.00017972,2]
[404582241,1770311444473,-151.0,0.00017972,2]
[404582242,1770311444482,-500.0,0.00017972,2]
[404582244,1770311444492,-500.0,0.00017973,2]
[404582246,1770311444501,-500.0,0.00017973,2]
[404582248,1770311444510,-500.0,0.00017973,2]
[404582250,1770311444519,-500.0,0.00017973,2]
[404582252,1770311444528,-500.0,0.00017973,2]
[404582253,1770311444537,-500.0,0.00017973,2]
[404582255,1770311444546,-500.0,0.00017973,2]
[404582257,1770311444555,-506.98515424,0.00017973,2]
[404582259,1770311444564,-510.4331516,0.00017973,2]
[404582261,1770311444573,-500.0,0.00017973,2]
[404582263,1770311444581,-509.2963147,0.00017973,2]
[404582264,1770311444590,-500.0,0.00017973,2]
[404582266,1770311444599,-500.0,0.00017973,2]
[404582268,1770311444608,-387.32253792,0.00017973,2]
[404582270,1770311444617,-500.0,0.00017973,2]
[404582272,1770311444626,-500.0,0.00017973,2]
[404582274,1770311444635,-506.90768866,0.00017973,2]
[404582275,1770311444643,-500.0,0.00017973,2]
[404582277,1770311444654,-511.65883454,0.00017973,2]
[404582279,1770311444663,-500.0,0.00017973,2]
[404582281,1770311444672,-500.0,0.00017973,2]
[404582283,1770311444681,-500.0,0.00017973,2]
[404582285,1770311444689,-500.0,0.00017973,2]
[404582286,1770311444698,-500.0,0.00017973,2]
[404582288,1770311444707,-500.0,0.00017973,2]
[404582289,1770311444716,-500.0,0.00017973,2]
[404582291,1770311444725,-507.08166095,0.00017973,2]
[404582302,1770311444861,-500.0,0.00017973,2]
[404582303,1770311444871,-500.0,0.00017973,2]
[404582305,1770311444880,-500.0,0.00017973,2]
[404582307,1770311444889,-500.0,0.00017973,2]
[404582309,1770311444899,-300.0,0.00017974,2]
[404582310,1770311444909,-20441.78201922,0.00017975,2]
[404582398,1770311445715,-68.67635294,0.000179,2]
[404582406,1770311445776,-254.55000005,0.000179,2]
[404582408,1770311445788,-133.31808463,0.000179,2]
[404582410,1770311445797,-1411.58599223,0.00017975,2]
[404582412,1770311445807,-324.56607223,0.00017975,2]
[404582416,1770311445829,-886.33311804,0.00017975,2]
[404582418,1770311445840,-5657.27997896,0.00017975,2]
[404582420,1770311445851,-471.44264485,0.00017975,2]
[404582423,1770311445862,-9897.49239535,0.00017975,2]
[404582425,1770311445873,-400.2,0.00017975,2]
[404582428,1770311445963,-97805.04244042,0.00017975,2]
[404582429,1770311445973,-5069.4064865,0.00017975,2]
[404582430,1770311445983,-280.7897224,0.00017975,2]
[404582431,1770311445992,-20612.57038375,0.00017975,2]
[404582432,1770311446005,-19574.15300465,0.00017975,2]
[404582434,1770311446014,-500.0,0.00017982,2]
[404582437,1770311446023,-1187.3,0.00017996,2]
[404582439,1770311446032,-151.0,0.00017997,2]
[404582440,1770311446041,-80696.95125353,0.00018,2]
[404582444,1770311446076,181.82708264,0.00014599,2]
[404582448,1770311446096,-1918.58576703,0.00018,2]
[404582450,1770311446107,-1518.81597667,0.00018,2]
[404582451,1770311446140,-308.13799953,0.00018,2]
[404582452,1770311446153,-1357.96,0.00018,2]
[404582453,1770311446164,-671.71352647,0.00018,2]
[404582607,1770311475841,222.5977,0.00014599,2]
[404582608,1770311517928,10000.01,0.00014598,2]
[404582609,1770311517963,984527.72482794,0.00014598,2]
[404582610,1770311524965,-300.0,0.00014597,2]
[404582611,1770311525002,-300.0,0.00014597,2]
[404582613,1770311527998,-7989.0642503,0.00014598,2]
[404582614,1770311556881,248.01469843,0.00014498,2]
[404582615,1770311589328,155.0,0.0001456,2]
[404582616,1770311622012,171.1,0.000145,2]
[404582617,1770311623988,-2408.01,0.00014575,2]
[404582618,1770311624012,-5183.99,0.00014575,2]
[404582619,1770311629942,-250.0,0.00014581,2]
[404582620,1770311629986,-1200.0,0.00014585,2]
[404582621,1770311630017,-2500.0,0.00014586,2]
[404582622,1770311630050,-256.53145144,0.0001459,2]
[404582623,1770311630079,-322.23477685,0.00014593,2]
[404582624,1770311630165,-942.47754342,0.00014593,2]
[404582625,1770311675432,11501.278971,0.00014519,2]
[404582626,1770311707149,161.0,0.0001456,2]
[404582627,1770311721363,2911.57670305,0.00014498,2]
[404582628,1770311736938,361.62579328,0.00014498,2]
[404582629,1770311762109,387.55,0.0002101,120]
[404582630,1770311767529,151.0,0.0001456,2]
[404582631,1770311780984,178.95551655,0.00014498,2]
[404582632,1770311809283,153.82156742,0.00014498,2]
[404582633,1770311809325,174.23534602,0.000145,2]
[404582634,1770311826852,155.0,0.0001456,2]
[404582635,1770311828667,3514.96955891,0.00014498,2]
[404582636,1770311887353,155.0,0.0001456,2]
[404582639,1770311945598,155.0,0.0001456,2]
[404582647,1770312008730,4138.00727183,0.000145,2]
[404582648,1770312010669,155.0,0.0001456,2]
[404582659,1770312068313,155.0,0.0001456,2]
[404582671,1770312107463,158.3,0.000145,2]
[404582676,1770312127335,155.0,0.0001456,2]
[404582691,1770312188477,155.0,0.0001456,2]
[404582699,1770312240637,463.83,0.00014426,2]
[404582703,1770312247649,155.0,0.0001456,2]
[404582739,1770312322404,-159.0,0.00023601,120]
[404582740,1770312331024,175.25606516,0.00014474,2]
[404582741,1770312335051,866.03,0.00014321,2]
[404582742,1770312336912,-5525.95916819,0.0001995,15]
[404582743,1770312336957,-427.26,0.00022,20]
[404582744,1770312336985,-359.6960638,0.00022222,30]
[404582745,1770312337008,-500.0,0.00023,30]
[404582746,1770312337031,-8009.57974529,0.00023,15]
[404582747,1770312337263,175.25606516,0.00014491,2]
[404582748,1770312346204,-665.787215,0.00017916,7]
[404582749,1770312346239,-150.0,0.000183,7]
[404582750,1770312346264,-358.8917737,0.0001901,7]
[404582751,1770312346285,-3006.25925659,0.00019178,7]
[404582752,1770312346310,-300.0,0.000199,7]
[404582753,1770312346337,-2940.98518203,0.0002,7]
[404582754,1770312346358,-529.87497421,0.0002,7]
[404582755,1770312346377,-2173.86919942,0.0002,7]
[404582756,1770312346398,-590.56,0.0002,10]
[404582757,1770312346420,-1000.0,0.0002,8]
[404582758,1770312346445,-1864.79680428,0.0002,14]
[404582759,1770312346466,-160.0,0.0002,7]
[404582760,1770312346492,-152.0,0.00020068,7]
[404582761,1770312346522,-163.0,0.0002091,14]
[404582762,1770312346543,-160.0,0.00021,7]
[404582763,1770312346564,-1000.0,0.00021,8]
[404582764,1770312346586,-240.190847,0.00021,10]
[404582765,1770312346606,-1778.09,0.000211,7]
[404582766,1770312346627,-554.822679,0.00021173,7]
[404582767,1770312346650,-152.0,0.00021734,8]
[404582768,1770312346674,-500.0,0.0002196,10]
[404582769,1770312346695,-501.61567711,0.0002196,10]
[404582770,1770312346715,-500.0,0.0002196,10]
[404582771,1770312346740,-799.76920092,0.00022,7]
[404582772,1770312346761,-3274.52,0.00022,7]
[404582773,1770312346785,-10020.0,0.00022463,7]
[404582774,1770312346807,-244.58498785,0.00022475,7]
[404582775,1770312346828,-220.272501,0.00022597,7]
[404582776,1770312346851,-637.41282483,0.00023,7]
[404582777,1770312346872,-3274.52,0.00023,7]
[404582778,1770312346893,-176.0,0.00023,7]
[404582779,1770312346913,-257.0,0.00023,10]
[404582780,1770312346939,-244.58498785,0.00023172,7]
[404582781,1770312346960,-176.0,0.00023288,7]
[404582782,1770312346983,-152.0,0.000234,9]
[404582783,1770312347008,-244.58498785,0.00023869,7]
[404582784,1770312347030,-506.0,0.00023954,7]
[404582785,1770312347053,-160.0,0.00024,7]
[404582786,1770312347075,-4310.21189001,0.00024,7]
[404582787,1770312348184,257.0,0.00021491,10]
[404582788,1770312360570,-300.0,0.000177,6]
[404582789,1770312360595,-300.0,0.000178,6]
[404582790,1770312360621,-300.0,0.000179,6]
[404582791,1770312360658,-152.0,0.00018402,6]
[404582792,1770312360717,-506.0,0.00023105,6]
[404582793,1770312361207,-156.0,0.0001456,2]
[404582794,1770312363473,165.0,0.00023,7]
[404582795,1770312363810,569.1924479,0.00011,2]
[404582806,1770312378480,-159.0,0.00024781,120]
[404582807,1770312378523,-500.0,0.00024966,120]
[404582808,1770312378561,-3168.25248711,0.00025,120]
[404582809,1770312378601,-313.82371497,0.00025,120]
[404582810,1770312378634,-6457.13490961,0.00025,120]
[404582811,1770312378666,-207.6406346,0.00025,120]
[404582812,1770312391521,-359.6960638,0.00024444,30]
[404582813,1770312391547,-216.0,0.0002493,30]
[404582814,1770312391570,-523.84160359,0.00025,30]
[404582815,1770312408166,-3274.52,0.000241,7]
[404582816,1770312408187,-176.0,0.00024164,7]
[404582817,1770312408209,-165.0,0.00024164,7]
[404582818,1770312408231,-244.58498785,0.00024566,7]
[404582819,1770312408257,-506.0,0.00024804,8]
[404582820,1770312408283,-48590.4715785,0.000249,7]
[404582821,1770312408305,-324.0,0.00025,15]
[404582822,1770312408332,-150.0,0.00025,17]
[404582823,1770312408354,-160.0,0.00025,7]
[404582824,1770312408376,-160.0,0.00025,7]
[404582825,1770312414195,166.66,0.00013089,2]
[404582826,1770312414488,166.66,0.00013364,2]
[404582827,1770312414743,166.66,0.0001364,2]
[404582828,1770312414989,166.66,0.00013915,2]
[404582829,1770312415273,166.66,0.00014191,2]
[404582830,1770312415477,166.66,0.00014466,2]
[404582833,1770312421754,150.0,0.0002,7]
[404582852,1770312439991,-300.0,0.00014573,2]
[404582853,1770312440023,-300.0,0.00014573,2]
[404582854,1770312440056,-254.47974801,0.00014573,2]
[404582855,1770312440086,-600.0,0.00014573,2]
[404582856,1770312440115,-250.0,0.00014574,2]
[404582857,1770312440143,-367.18436696,0.00014574,2]
[404582858,1770312440175,-600.0,0.00014574,2]
[404582859,1770312440206,-600.0,0.00014574,2]
[404582860,1770312440236,-300.0,0.00014574,2]
[404582861,1770312440265,-1200.0,0.00014574,2]
[404582862,1770312440293,-156.68177006,0.00014574,2]
[404582863,1770312440570,-5431.76614734,0.000162,5]
[404582864,1770312440596,-2200.0,0.000171,6]
[404582865,1770312440617,-4500.0,0.000172,6]
[404582866,1770312440639,-6800.0,0.000173,6]
[404582867,1770312440661,-9100.0,0.000174,6]
[404582868,1770312440682,-11400.0,0.000175,6]
[404582869,1770312440706,-2200.0,0.000176,6]
[404582870,1770312440728,-2200.0,0.000177,6]
[404582871,1770312440756,-2200.0,0.000178,6]
[404582872,1770312440968,-143.31822994,0.00014574,2]
[404582873,1770312440996,-300.0,0.00014574,2]
[404582875,1770312441756,2200.0,0.000179,6]
[404582907,1770312453112,-11786.27958032,0.000179,3]
[404582908,1770312453136,-160.0,0.000179,3]
[404582909,1770312453161,-2514.5805028,0.0001799,3]
[404582910,1770312456137,-250.0,0.00014574,2]
[404582911,1770312456167,-300.0,0.00014575,2]
[404582912,1770312456203,-271.0,0.00014575,2]
[404582913,1770312456233,-611.36272693,0.00014575,2]
[404582914,1770312456270,-1000.0,0.00014577,2]
[404582915,1770312456301,-179.32932248,0.00014578,2]
[404582916,1770312456676,-4776.62590118,0.00014578,2]
[404582917,1770312456744,-0.02,0.00014581,2]
[404582918,1770312456787,-0.04,0.00014581,2]
[404582920,1770312456963,-6909.95540563,0.00014581,2]
[404582921,1770312456977,-3089.97459437,0.00014581,2]
[404582922,1770312456987,-200.0,0.00014582,2]
[404582923,1770312456998,-500.0,0.00014582,2]
[404582924,1770312457009,-500.0,0.00014582,2]
[404582925,1770312457019,-500.0,0.00014582,2]
[404582926,1770312457029,-500.0,0.00014582,2]
[404582927,1770312457040,-500.0,0.00014582,2]
[404582928,1770312457050,-500.0,0.00014582,2]
[404582929,1770312457066,-500.0,0.00014582,2]
[404582930,1770312457076,-500.0,0.00014582,2]
[404582931,1770312457086,-500.0,0.00014582,2]
[404582932,1770312457096,-500.0,0.00014582,2]
[404582933,1770312457106,-500.0,0.00014582,2]
[404582934,1770312457115,-500.0,0.00014582,2]
[404582935,1770312457125,-151.0,0.00014582,2]
[404582936,1770312457135,-151.0,0.00014582,2]
[404582937,1770312457145,-151.0,0.00014582,2]
[404582938,1770312457155,-151.0,0.00014582,2]
[404582939,1770312457165,-105.99540563,0.00014582,2]
[404582940,1770312457207,-45.00459437,0.00014582,2]
[404582941,1770312457241,-200.0,0.00014582,2]
[404582942,1770312457277,-151.0,0.00014582,2]
[404582943,1770312457308,-151.0,0.00014582,2]
[404582944,1770312457342,-151.0,0.00014582,2]
[404582945,1770312457375,-151.0,0.00014582,2]
[404582946,1770312457407,-151.0,0.00014582,2]
[404582947,1770312457439,-151.0,0.00014582,2]
[404582948,1770312457469,-150.0,0.00014587,2]
[404582949,1770312457523,-0.02,0.00014588,2]
[404582950,1770312457563,-0.04,0.00014588,2]
[404582951,1770312457609,-0.08,0.00014588,2]